bitfinex/quotes_SOLUSD_20250414
["timestamp","ask_amount","ask_price","bid_price","bid_amount"]
[1744648952516,0.03,129.81,129.77,30.79953942]
[1744648952720,30.82953942,129.81,129.76,30.79953942]
[1744648952904,0.03,129.81,129.77,30.79953942]
[1744648953315,30.82953942,129.81,129.76,30.79953942]
[1744648953530,0.03,129.81,129.76,30.79953942]
[1744648953736,0.03,129.81,129.77,30.79953942]
[1744648953922,30.82953942,129.81,129.76,30.79953942]
[1744648954127,30.79953942,129.78,129.73,9.3436]
[1744648954436,38.50523942,129.78,129.74,30.79953942]
[1744648954613,38.50523942,129.78,129.72,7.7086]
[1744648954937,30.79953942,129.77,129.72,38.50813942]
[1744648955139,30.79953942,129.76,129.71,7.7093]
[1744648955331,30.79953942,129.76,129.71,38.50883942]
[1744648955538,30.79953942,129.76,129.72,30.79953942]
[1744648955939,30.79953942,129.73,129.69,1.5069]
[1744648956237,30.79953942,129.7,129.66,7.7122]
[1744648956439,30.79953942,129.69,129.65,7.7125]
[1744648956641,38.50983942,129.7,129.65,38.51203942]
[1744648956943,111.59953942,129.73,129.68,30.79953942]
[1744648957817,30.79953942,129.71,129.66,30.79953942]
[1744648958335,30.79953942,129.72,129.67,30.79953942]
[1744648958639,30.79953942,129.71,129.66,30.79953942]
[1744648959341,38.50843942,129.72,129.67,30.79953942]
[1744648959839,119.30803942,129.73,129.68,30.79953942]
[1744648960427,119.30803942,129.73,129.68,38.51063942]
[1744648961757,119.30803942,129.73,129.65,19.2815]
[1744648961944,30.79953942,129.72,129.67,30.79953942]
[1744648962119,30.79953942,129.69,129.64,7.7136]
[1744648962421,30.79953942,129.71,129.66,30.79953942]
[1744648962613,30.79953942,129.72,129.67,30.79953942]
[1744648962817,88.5085,129.73,129.67,30.79953942]
[1744648963016,30.79953942,129.72,129.67,30.79953942]
[1744648963218,30.79953942,129.71,129.66,30.79953942]
[1744648963414,30.79953942,129.69,129.65,30.79953942]
[1744648963729,30.79953942,129.71,129.66,30.79953942]
[1744648963931,38.50893942,129.72,129.67,30.79953942]
[1744648965760,30.79953942,129.71,129.67,30.79953942]
[1744648965945,30.79953942,129.71,129.64,7.7136]
[1744648966148,30.79953942,129.7,129.66,30.79953942]
[1744648966446,30.79953942,129.7,129.65,30.79953942]
[1744648966645,30.79953942,129.68,129.63,45.17603942]
[1744648966829,30.79953942,129.68,129.63,38.51343942]
[1744648967147,30.79953942,129.65,129.61,0.063]
[1744648967351,30.79953942,129.62,129.61,0.063]
[1744648967858,80.8,129.64,129.61,0.063]
[1744648968031,30.79953942,129.63,129.61,0.063]
[1744648968233,80.8,129.64,129.61,0.063]
[1744648968532,80.8,129.64,129.61,38.57753942]
[1744648968733,3.94150739,129.66,129.63,30.79953942]
[1744648968939,3.94150739,129.66,129.65,69.45424041]
[1744648969124,0.14216157,129.72,129.65,7.713]
[1744648969321,30.79953942,129.69,129.64,13.8824]
[1744648969527,30.79953942,129.7,129.66,30.79953942]
[1744648969751,30.79953942,129.69,129.64,7.7134]
[1744648970063,30.79953942,129.69,129.65,30.79953942]
[1744648970355,30.79953942,129.7,129.65,30.79953942]
[1744648970764,30.79953942,129.69,129.64,38.51293942]
[1744648971063,38.51073942,129.68,129.63,40.15833942]
[1744648971362,30.79953942,129.7,129.63,9.3588]
[1744648971544,30.79953942,129.7,129.65,30.79953942]
[1744648971745,89.48,129.71,129.66,30.79953942]
[1744648972058,30.79953942,129.7,129.65,30.79953942]
[1744648973057,30.79953942,129.68,129.63,32.44443942]
[1744648973253,0.28432314,129.69,129.61,7.7783]
[1744648973254,30.79953942,129.66,129.61,7.7783]
[1744648973451,30.79953942,129.64,129.61,0.063]
[1744648973758,30.79953942,129.65,129.61,0.063]
[1744648973953,39.76386256,129.66,129.61,30.86253942]
[1744648974150,8.68,129.66,129.62,30.79953942]
[1744648974460,7.7114,129.68,129.64,30.79953942]
[1744648974647,80.8,129.69,129.66,30.79953942]
[1744648975036,88.5108,129.69,129.66,30.79953942]
[1744648975457,88.5108,129.69,129.65,30.79953942]
[1744648976240,80.8,129.69,129.66,30.79953942]
[1744648976443,80.8,129.69,129.67,30.79953942]
[1744648977153,88.511,129.69,129.66,30.79953942]
[1744648977355,80.8,129.69,129.66,38.51193942]
[1744648978363,119.31023942,129.69,129.64,6.0816]
[1744648978663,119.31023942,129.69,129.65,30.79953942]
[1744648978664,88.5107,129.69,129.65,30.79953942]
[1744648979365,80.8,129.69,129.65,38.51233942]
[1744648979552,80.8,129.69,129.66,30.79953942]
[1744648979758,88.5107,129.69,129.65,30.79953942]
[1744648979955,88.5107,129.69,129.65,38.51253942]
[1744648980346,88.5107,129.69,129.65,30.79953942]
[1744648980663,88.5107,129.69,129.65,38.51253942]
[1744648980860,80.8,129.69,129.66,30.79953942]
[1744648981367,80.8,129.69,129.63,26.9987]
[1744648981569,80.8,129.69,129.66,30.79953942]
[1744648981959,80.8,129.69,129.67,30.79953942]
[1744648982552,80.8,129.69,129.66,30.79953942]
[1744648982755,80.8,129.69,129.65,30.79953942]
[1744648983066,80.8,129.69,129.67,30.79953942]
[1744648983454,88.5107,129.69,129.66,30.79953942]
[1744648983779,80.8,129.69,129.65,38.51243942]
[1744648983982,88.5107,129.69,129.65,38.51243942]
[1744648984280,80.8,129.69,129.66,30.79953942]
[1744648984572,30.79953942,129.67,129.62,9.2258]
[1744648984772,30.79953942,129.64,129.61,0.063]
[1744648984978,30.79953942,129.63,129.61,0.063]
[1744648985367,30.79953942,129.65,129.61,0.063]
[1744648985561,89.46,129.66,129.63,30.79953942]
[1744648985764,97.1726,129.66,129.63,30.79953942]
[1744648986072,97.1726,129.66,129.62,30.79953942]
[1744648986773,80.8,129.66,129.63,30.79953942]
[1744648986961,30.79953942,129.68,129.61,0.063]
[1744648986962,7.7101,129.7,129.61,0.20516157]
[1744648987159,38.50963942,129.7,129.65,30.79953942]
[1744648987364,30.79953942,129.69,129.64,30.79953942]
[1744648987558,7.7112,129.68,129.64,30.79953942]
[1744648987758,38.51043942,129.69,129.64,38.51293942]
[1744648989295,38.51043942,129.69,129.64,30.79953942]
[1744648989471,38.51043942,129.69,129.64,38.51303942]
[1744648989980,16.3701,129.7,129.66,30.79953942]
[1744648990481,47.16963942,129.7,129.65,30.79953942]
[1744648990675,16.3701,129.7,129.66,30.79953942]
[1744648990986,47.16963942,129.7,129.66,30.79953942]
[1744648991368,16.3701,129.7,129.66,30.79953942]
[1744648991576,30.79953942,129.69,129.63,7.7142]
[1744648991772,47.16963942,129.7,129.65,30.79953942]
[1744648991958,16.3701,129.7,129.66,30.79953942]
[1744648992157,47.16963942,129.7,129.66,30.79953942]
[1744648992577,16.3701,129.7,129.66,30.79953942]
[1744648992883,8.66,129.7,129.66,30.79953942]
[1744648993055,16.3701,129.7,129.66,30.79953942]
[1744648993580,16.3701,129.7,129.66,38.51173942]
[1744648994167,7.7101,129.7,129.66,38.51173942]
[1744648994386,80.8,129.71,129.67,30.79953942]
[1744648994682,88.5095,129.71,129.67,30.79953942]
[1744648994878,30.79953942,129.7,129.65,38.51233942]
[1744648995068,88.5095,129.71,129.66,30.79953942]
[1744648995069,119.30903942,129.71,129.66,30.79953942]
[1744648995766,119.30903942,129.71,129.66,38.51193942]
[1744648995970,88.5095,129.71,129.67,30.79953942]
[1744648996880,80.8,129.71,129.67,30.79953942]
[1744648997078,7.7085,129.73,129.69,30.79953942]
[1744648997372,38.50803942,129.73,129.68,30.79953942]
[1744648997583,30.79953942,129.72,129.68,30.79953942]
[1744648997972,38.50803942,129.73,129.68,38.51073942]
[1744648998173,7.7085,129.73,129.68,38.51073942]
[1744648998480,7.7085,129.73,129.69,30.79953942]
[1744648998861,38.50803942,129.73,129.68,38.51073942]
[1744648999055,7.7085,129.73,129.69,30.79953942]
[1744648999262,38.50743942,129.74,129.69,30.79953942]
[1744648999470,38.50743942,129.74,129.69,38.51013942]
[1744648999770,38.50743942,129.74,129.69,38.50993942]
[1744648999954,80.8,129.76,129.73,30.79953942]
[1744649000155,88.5052,129.79,129.7,1.5604]
[1744649000370,30.79953942,129.77,129.72,30.79953942]
[1744649000589,88.5052,129.79,129.74,30.79953942]
[1744649000884,80.8,129.79,129.75,30.79953942]
[1744649001195,80.8,129.79,129.76,30.79953942]
[1744649001355,80.8,129.79,129.75,30.79953942]
[1744649001563,80.8,129.79,129.75,38.50643942]
[1744649001772,88.5047,129.79,129.75,38.50643942]
[1744649001971,80.8,129.79,129.76,30.79953942]
[1744649002165,0.03,129.81,129.76,30.79953942]
[1744649002365,30.82953942,129.81,129.76,30.79953942]
[1744649002589,30.79953942,129.8,129.75,38.50643942]
[1744649002793,30.82953942,129.81,129.76,30.79953942]
[1744649003094,30.82953942,129.81,129.77,30.79953942]
[1744649003277,38.53313942,129.81,129.77,30.79953942]
[1744649003679,38.53313942,129.81,129.73,26.9788]
[1744649003878,38.53313942,129.81,129.76,30.79953942]
[1744649004079,30.79953942,129.8,129.73,26.9788]
[1744649004297,30.79953942,129.8,129.76,30.79953942]
[1744649004498,38.53313942,129.81,129.76,30.79953942]
[1744649005101,38.53313942,129.81,129.76,38.50563942]
[1744649005273,7.7336,129.81,129.76,38.50563942]
[1744649005466,38.53313942,129.81,129.77,30.79953942]
[1744649006487,0.03,129.81,129.77,30.79953942]
[1744649006696,0.03,129.81,129.79,30.79953942]
[1744649006870,0.03,129.81,129.78,30.79953942]
[1744649007070,0.03,129.81,129.77,32.46133942]
[1744649007290,0.03,129.81,129.8,30.79953942]
[1744649008394,0.03,129.81,129.8,38.50363942]
[1744649010263,0.03,129.81,129.77,9.3675]
[1744649010495,0.03,129.81,129.78,30.79953942]
[1744649010987,0.03,129.81,129.77,9.3675]
[1744649011177,0.03,129.81,129.78,30.79953942]
[1744649011379,0.03,129.81,129.78,38.50483942]
[1744649011893,0.03,129.81,129.77,40.16703942]
[1744649012191,0.03,129.81,129.77,30.79953942]
[1744649012492,0.03,129.81,129.78,30.79953942]
[1744649013381,0.03,129.81,129.78,38.50463942]
[1744649014994,30.82953942,129.81,129.76,30.79953942]
[1744649015193,0.03,129.81,129.77,19.22533944]
[1744649015376,0.03,129.81,129.78,19.22533944]
[1744649016075,0.03,129.81,129.79,19.22533944]
[1744649016280,0.03,129.81,129.78,19.22533944]
[1744649016995,0.03,129.81,129.79,19.22533944]
[1744649017176,0.03,129.81,129.78,26.93053944]
[1744649018185,0.03,129.81,129.77,26.93093944]
[1744649018382,0.03,129.81,129.75,7.7071]
[1744649018780,19.25533944,129.81,129.77,19.22533944]
[1744649019395,19.25533944,129.81,129.77,26.93113944]
[1744649019599,26.95893944,129.81,129.77,26.93113944]
[1744649020296,26.95893944,129.81,129.76,7.7062]
[1744649020606,26.95893944,129.81,129.76,26.93153944]
[1744649020806,26.95893944,129.81,129.77,19.22533944]
[1744649021002,19.25533944,129.81,129.77,19.22533944]
[1744649021303,0.03,129.81,129.77,19.22533944]
[1744649021496,0.03,129.81,129.8,19.22533944]
[1744649023595,0.03,129.81,129.8,26.92943944]
[1744649025279,0.03,129.81,129.8,19.22533944]
[1744649025481,0.03,129.81,129.79,26.92983944]
[1744649025704,0.03,129.81,129.78,26.93033944]
[1744649025889,0.03,129.81,129.79,19.22533944]
[1744649026608,0.03,129.81,129.8,19.22533944]
[1744649027809,0.03,129.81,129.8,26.92943944]
[1744649028277,0.03,129.81,129.8,28.51543944]
[1744649029702,0.03,129.81,129.8,28.65760101]
[1744649030101,0.03,129.81,129.71,1.6357]
[1744649030282,0.03,129.81,129.77,19.22533944]
[1744649030584,0.03,129.81,129.78,19.22533944]
[1744649030787,0.03,129.81,129.79,19.22533944]
[1744649031517,0.03,129.81,129.77,27.6517]
[1744649031687,0.03,129.81,129.8,26.92943944]
[1744649033494,0.03,129.81,129.8,27.07160101]
[1744649034812,2.8185393,129.83,129.81,0.14216157]
[1744649034996,2.8185393,129.83,129.82,19.22533944]
[1744649036107,2.8185393,129.83,129.82,26.92823944]
[1744649037021,3.93e-05,129.83,129.82,46.00437301]
[1744649037309,0.03,129.87,129.83,0.14216157]
[1744649037508,0.03,129.87,129.86,19.22533944]
[1744649038083,0.03,129.87,129.85,26.92623944]
[1744649038305,0.03,129.87,129.86,19.22533944]
[1744649038489,4.9978434,129.87,129.85,26.92623944]
[1744649039511,4.9978434,129.87,129.86,19.22533944]
[1744649040007,4.9978434,129.87,129.85,26.92623944]
[1744649040212,4.9978434,129.87,129.84,26.92683944]
[1744649040409,4.9978434,129.87,129.84,7.7015]
[1744649040801,4.9978434,129.87,129.83,26.92743944]
[1744649041005,4.9978434,129.87,129.84,19.22533944]
[1744649041517,4.9978434,129.87,129.83,26.92743944]
[1744649041836,4.9978434,129.87,129.84,19.22533944]
[1744649041996,4.9978434,129.87,129.86,19.22533944]
[1744649042597,4.9978434,129.87,129.83,26.958]
[1744649042800,4.9978434,129.87,129.85,19.22533944]
[1744649042998,4.9978434,129.87,129.86,19.22533944]
[1744649043614,4.9978434,129.87,129.86,26.92593944]
[1744649043796,4.9978434,129.87,129.83,7.7023]
[1744649044426,4.9978434,129.87,129.84,19.22533944]
[1744649045314,4.9978434,129.87,129.85,26.92623944]
[1744649046627,4.9978434,129.87,129.86,19.22533944]
[1744649046822,4.9978434,129.87,129.86,19.36750101]
[1744649047420,4.9978434,129.87,129.86,27.06810101]
[1744649048295,4.9978434,129.87,129.86,26.92593944]
[1744649048528,4.9978434,129.87,129.85,26.92623944]
[1744649048715,4.9978434,129.87,129.86,19.22533944]
[1744649049329,4.9978434,129.87,129.86,26.92593944]
[1744649052824,4.9978434,129.87,129.86,7.7006]
[1744649053009,4.9978434,129.87,129.86,26.92593944]
[1744649055604,4.9978434,129.87,129.86,19.22533944]
[1744649057621,4.9978434,129.87,129.86,27.06810101]
[1744649057825,4.9978434,129.87,129.86,26.92593944]
[1744649058819,4.9978434,129.87,129.86,27.06810101]
[1744649059620,4.34e-05,129.87,129.86,46.14423458]
[1744649059811,4.34e-05,129.87,129.86,56.50509615]
[1744649060120,0.03,129.93,129.88,0.14216157]
[1744649060317,0.03,129.93,129.9,19.22533944]
[1744649061421,0.03,129.93,129.91,19.22533944]
[1744649061618,0.03,129.93,129.91,26.92263944]
[1744649062221,0.03,129.93,129.91,7.6973]
[1744649063328,0.03,129.93,129.91,26.92263944]
[1744649064128,0.03,129.93,129.91,7.6973]
[1744649064312,0.03,129.93,129.91,26.92263944]
[1744649064515,6.1633,130.01,129.93,18.933972]
[1744649064719,80.8,130.02,129.98,19.22533944]
[1744649065038,7.6902,130.04,129.98,19.22533944]
[1744649065209,19.22533944,130.02,129.97,19.22533944]
[1744649065729,19.22533944,130.02,129.97,26.91883944]
[1744649066027,19.22533944,129.99,129.94,19.22533944]
[1744649066209,19.22533944,129.96,129.89,44.7286]
[1744649066531,19.22533944,129.96,129.91,19.22533944]
[1744649067328,19.22533944,129.96,129.92,7.697]
[1744649067530,19.22533944,129.96,129.91,19.22533944]
[1744649067531,26.92003944,129.96,129.91,26.92273944]
[1744649067734,19.22533944,129.95,129.91,7.6974]
[1744649067929,19.22533944,129.94,129.9,37.6982]
[1744649068104,19.22533944,129.93,129.9,37.6982]
[1744649068301,19.22533944,129.94,129.9,37.6982]
[1744649068505,19.22533944,129.93,129.9,30.0]
[1744649068935,7.6942,129.97,129.89,7.6985]
[1744649069230,19.22533944,129.92,129.88,9.2227]
[1744649069442,19.22533944,129.92,129.88,7.6993]
[1744649069738,19.22533944,129.93,129.88,26.92463944]
[1744649070218,26.92113944,129.94,129.89,19.22533944]
[1744649070726,19.22533944,129.92,129.88,7.6993]
[1744649071111,100.31852314,129.98,129.9,19.22533944]
[1744649071301,26.92073944,129.95,129.9,26.92303944]
[1744649071514,19.22533944,129.93,129.88,19.22533944]
[1744649072317,19.22533944,129.94,129.89,19.22533944]
[1744649072510,26.92133944,129.94,129.89,19.22533944]
[1744649073436,26.92133944,129.94,129.89,26.92363944]
[1744649073828,0.28432314,129.96,129.89,26.92363944]
[1744649074013,19.22533944,129.94,129.89,26.92363944]
[1744649074215,19.22533944,129.95,129.9,19.22533944]
[1744649074422,107.71903944,129.98,129.93,19.22533944]
[1744649074939,19.22533944,129.96,129.91,19.22533944]
[1744649075118,19.22533944,129.97,129.89,26.9453]
[1744649075534,19.22533944,129.97,129.91,18.91548944]
[1744649075839,7.6947,129.96,129.92,7.697]
[1744649076141,7.6943,129.97,129.92,26.92233944]
[1744649076324,26.91963944,129.97,129.92,26.92233944]
[1744649077237,88.4936,129.98,129.92,26.92233944]
[1744649077443,107.71893944,129.98,129.93,19.22533944]
[1744649077618,19.22533944,129.97,129.92,26.92233944]
[1744649077812,88.4936,129.98,129.92,26.92233944]
[1744649078019,19.22533944,129.97,129.92,26.92233944]
[1744649078327,80.8,129.98,129.94,19.22533944]
[1744649078538,80.8,129.98,129.95,19.22533944]
[1744649078833,80.8,129.98,129.94,19.22533944]
[1744649079228,80.8,129.98,129.95,26.92033944]
[1744649079427,80.8,129.98,129.95,7.695]
[1744649079835,88.4935,129.98,129.94,26.92083944]
[1744649080225,88.4935,129.98,129.92,20.8296]
[1744649080226,19.22533944,129.97,129.92,20.81233944]
[1744649080631,107.71883944,129.98,129.93,19.22533944]
[1744649081340,26.91983944,129.97,129.92,9.2837]
[1744649081524,26.91983944,129.97,129.92,28.50903944]
[1744649082342,19.22533944,129.94,129.9,7.698]
[1744649082527,19.22533944,129.94,129.89,19.22533944]
[1744649082528,19.22533944,129.93,129.89,7.6986]
[1744649082920,19.22533944,129.94,129.89,26.92393944]
[1744649084142,26.92123944,129.94,129.89,26.92393944]
[1744649084440,19.22533944,129.93,129.88,28.55223944]
[1744649084649,80.8,129.95,129.91,19.22533944]
[1744649085931,80.8,129.95,129.91,26.92273944]
[1744649086450,88.4954,129.95,129.91,26.92273944]
[1744649086640,107.72073944,129.95,129.88,20.8762]
[1744649086833,19.22533944,129.94,129.89,19.22533944]
[1744649087230,19.22533944,129.94,129.89,26.92363944]
[1744649087434,88.4954,129.95,129.9,19.22533944]
[1744649088144,88.4954,129.95,129.91,7.6976]
[1744649088348,80.8,129.95,129.91,7.6976]
[1744649088658,88.4955,129.95,129.91,26.92293944]
[1744649088955,80.8,129.95,129.91,26.92293944]
[1744649089249,88.4953,129.95,129.91,26.92293944]
[1744649089722,80.8,129.95,129.91,26.92293944]
[1744649090455,88.4953,129.95,129.91,26.92293944]
[1744649090929,80.8,129.95,129.92,19.22533944]
[1744649092146,80.8,129.95,129.93,19.22533944]
[1744649092357,7.6947,129.96,129.93,19.22533944]
[1744649092529,7.6947,129.96,129.92,19.22533944]
[1744649092736,26.92003944,129.96,129.91,19.22533944]
[1744649093055,7.6943,129.97,129.92,19.22533944]
[1744649093230,19.22533944,129.95,129.9,26.92323944]
[1744649093427,19.22533944,129.94,129.89,7.6985]
[1744649093763,19.22533944,129.94,129.89,26.92383944]
[1744649094129,19.22533944,129.95,129.9,19.22533944]
[1744649094459,7.6957,129.95,129.91,19.22533944]
[1744649094631,26.92103944,129.95,129.9,26.92323944]
[1744649095166,7.6957,129.95,129.9,26.92323944]
[1744649095651,19.22533944,129.95,129.9,26.92323944]
[1744649096032,107.72023944,129.96,129.91,19.22533944]
[1744649096529,88.4949,129.96,129.91,26.92263944]
[1744649096740,107.72023944,129.96,129.91,26.92263944]
[1744649098955,100.02533944,129.96,129.91,26.92263944]
[1744649099133,7.6937,129.98,129.95,19.22533944]
[1744649099333,7.6937,129.98,129.94,19.22533944]
[1744649099829,7.6937,129.98,129.95,19.22533944]
[1744649100144,89.4,130.0,129.95,19.22533944]
[1744649100333,97.0925,130.0,129.97,19.22533944]
[1744649100538,97.0925,130.0,129.96,19.22533944]
[1744649101232,88.4925,130.0,129.96,19.22533944]
[1744649102247,19.22533944,129.97,129.91,9.2155]
[1744649102448,19.22533944,129.96,129.91,28.44083944]
[1744649102753,19.22533944,129.97,129.92,19.22533944]
[1744649102946,19.22533944,129.95,129.9,26.92323944]
[1744649103151,19.22533944,129.92,129.88,9.3165]
[1744649103328,19.22533944,129.93,129.89,30.0]
[1744649103536,107.72113944,129.94,129.89,49.22533944]
[1744649103850,19.22533944,129.92,129.89,30.0]
[1744649104040,19.22533944,129.92,129.87,26.92503944]
[1744649104557,88.4958,129.94,129.85,20.84283944]
[1744649104558,19.22533944,129.9,129.85,20.84283944]
[1744649104744,19.22533944,129.92,129.87,19.22533944]
[1744649105653,26.92293944,129.91,129.86,19.22533944]
[1744649106248,19.22533944,129.9,129.85,20.84283944]
[1744649106561,19.22533944,129.9,129.85,28.54383944]
[1744649106759,19.22533944,129.9,129.85,9.3185]
[1744649106939,19.22533944,129.9,129.85,20.84283944]
[1744649107343,100.02533944,129.9,129.85,28.54393944]
[1744649107864,7.6988,129.89,129.85,28.54393944]
[1744649108033,7.6988,129.89,129.85,1.6175]
[1744649108238,7.6988,129.89,129.85,20.84283944]
[1744649108567,7.6988,129.89,129.85,28.54383944]
[1744649108750,7.6988,129.89,129.85,20.84283944]
[1744649109058,26.92413944,129.89,129.84,25.34063944]
[1744649109372,26.92413944,129.89,129.84,19.22533944]
[1744649109741,7.6988,129.89,129.85,19.22533944]
[1744649110253,26.92413944,129.89,129.85,19.22533944]
[1744649110453,19.22533944,129.87,129.83,0.063]
[1744649110658,19.22533944,129.85,129.83,0.063]
[1744649110856,19.22533944,129.84,129.83,0.063]
[1744649111364,57.66897402,129.84,129.83,0.063]
[1744649111565,19.22533944,129.78,129.77,0.063]
[1744649111745,26.92923944,129.81,129.77,0.063]
[1744649112263,19.22533944,129.81,129.77,19.28833944]
[1744649112566,0.28432314,129.86,129.8,19.22533944]
[1744649112770,0.28432314,129.86,129.82,19.22533944]
[1744649112771,7.98492314,129.86,129.82,19.22533944]
[1744649112963,27.21026258,129.86,129.81,19.22533944]
[1744649114264,19.22533944,129.85,129.77,0.063]
[1744649114452,19.22533944,129.83,129.79,19.22533944]
[1744649114656,19.22533944,129.83,129.78,26.93053944]
[1744649114852,19.22533944,129.84,129.79,19.22533944]
[1744649115171,30.7435002,129.84,129.8,30.7435002]
[1744649115348,38.4453002,129.84,129.8,30.7435002]
[1744649116068,38.4448002,129.85,129.81,30.7435002]
[1744649117371,7.7013,129.85,129.81,30.7435002]
[1744649117668,38.4448002,129.85,129.81,30.7435002]
[1744649118046,38.4448002,129.85,129.8,30.7435002]
[1744649118257,7.7013,129.85,129.8,30.7435002]
[1744649118445,30.7435002,129.84,129.8,30.7435002]
[1744649118781,30.7435002,129.85,129.8,30.7435002]
[1744649118985,30.7435002,129.84,129.79,7.7047]
[1744649119145,30.7435002,129.82,129.77,38.5122002]
[1744649119455,30.7435002,129.81,129.77,38.5122002]
[1744649120044,30.7435002,129.82,129.77,38.5122002]
[1744649120240,80.8,129.83,129.8,30.7435002]
[1744649121563,80.8,129.83,129.79,32.3939002]
[1744649121878,80.8,129.83,129.8,30.7435002]
[1744649122082,80.8,129.83,129.8,38.4471002]
[1744649123584,80.8,129.83,129.8,7.7036]
[1744649123779,80.8,129.83,129.8,38.4471002]
[1744649124268,30.7435002,129.82,129.77,7.7684]
[1744649124476,30.7435002,129.81,129.77,38.5119002]
[1744649124658,30.7435002,129.82,129.77,38.5119002]
[1744649125075,88.5024,129.83,129.77,38.5119002]
[1744649125275,30.7435002,129.82,129.77,38.5119002]
[1744649126285,38.4465002,129.82,129.77,38.5119002]
[1744649126760,30.7435002,129.82,129.77,38.5119002]
[1744649127483,38.4449002,129.85,129.8,30.7435002]
[1744649127777,30.7435002,129.84,129.8,30.7435002]
[1744649127987,30.7435002,129.84,129.79,38.4479002]
[1744649128585,30.7435002,129.83,129.79,38.4479002]
[1744649128769,0.14216157,129.86,129.82,30.7435002]
[1744649128965,80.8,129.91,129.85,30.7435002]
[1744649129159,80.8,129.91,129.87,30.7435002]
[1744649129357,30.7435002,129.88,129.8,16.2515]
[1744649129590,30.7435002,129.87,129.83,30.7435002]
[1744649129758,80.8,129.89,129.85,30.7435002]
[1744649130088,30.7435002,129.88,129.84,7.7017]
[1744649130382,30.7435002,129.88,129.83,38.4456002]
[1744649130585,88.4988,129.89,129.82,7.7027]
[1744649130586,30.7435002,129.86,129.82,7.7027]
[1744649131901,7.6996,129.88,129.82,38.4462002]
[1744649132092,30.7435002,129.87,129.82,38.4462002]
[1744649132393,30.7435002,129.88,129.83,30.7435002]
[1744649133291,30.7435002,129.87,129.82,38.4462002]
[1744649133599,30.7435002,129.86,129.82,7.7027]
[1744649135194,19.2087986,129.86,129.82,7.7027]
[1744649136293,19.2087986,129.87,129.82,46.1688986]
[1744649136459,80.8,129.89,129.86,19.2087986]
[1744649136663,80.8,129.89,129.87,19.2087986]
[1744649137887,80.83,129.94,129.88,19.2087986]
[1744649138084,19.2087986,129.91,129.86,27.2278986]
[1744649138275,19.2087986,129.88,129.86,1.509]
[1744649138598,19.2087986,129.87,129.83,15.4987]
[1744649138772,19.2087986,129.86,129.83,1.6288]
[1744649138971,19.2087986,129.85,129.83,1.6288]
[1744649139173,30.73305979,129.86,129.83,9.331]
[1744649139414,30.73305979,129.85,129.83,1.6288]
[1744649139691,30.73305979,129.85,129.8,7.7222]
[1744649139887,30.73305979,129.85,129.77,7.7687]
[1744649139888,30.73305979,129.81,129.77,7.7687]
[1744649140092,30.73305979,129.79,129.77,0.063]
[1744649140390,30.73305979,129.78,129.77,0.063]
[1744649140796,0.28432314,129.81,129.77,0.063]
[1744649140974,30.73305979,129.78,129.77,0.063]
[1744649141290,30.73305979,129.8,129.77,0.063]
[1744649142169,30.73305979,129.78,129.77,0.063]
[1744649142569,38.43835979,129.78,129.77,0.063]
[1744649142798,30.73305979,129.78,129.77,0.063]
[1744649142994,80.8,129.81,129.77,0.063]
[1744649143373,80.8,129.81,129.77,30.79605979]
[1744649143596,111.53305979,129.81,129.77,0.063]
[1744649143902,30.73305979,129.8,129.77,0.063]
[1744649144195,111.53305979,129.81,129.77,0.063]
[1744649144600,30.73305979,129.8,129.77,0.063]
[1744649144901,30.73305979,129.79,129.77,0.063]
[1744649145084,30.73305979,129.8,129.77,0.063]
[1744649145395,80.8,129.81,129.77,0.063]
[1744649145602,30.73305979,129.84,129.79,30.73305979]
[1744649145973,30.73305979,129.84,129.78,7.6743]
[1744649146214,30.73305979,129.83,129.78,38.40735979]
[1744649146701,38.43445979,129.85,129.8,30.73305979]
[1744649147404,30.73305979,129.84,129.79,38.43775979]
[1744649147577,30.73305979,129.83,129.79,7.7047]
[1744649147768,30.73305979,129.84,129.79,38.43775979]
[1744649147972,111.53305979,129.86,129.81,30.73305979]
[1744649148173,80.8,129.86,129.82,30.73305979]
[1744649148380,80.8,129.86,129.83,30.73305979]
[1744649148995,80.8,129.86,129.82,30.73305979]
[1744649149700,111.53305979,129.86,129.81,30.73305979]
[1744649149901,111.53305979,129.86,129.82,30.73305979]
[1744649149902,80.8,129.86,129.82,30.73305979]
[1744649150115,80.8,129.86,129.83,30.73305979]